fUSD/lending_fUSD_20250828
["ID","MTS","AMOUNT","RATE_DAILY","PERIOD"]
[381879418,1756385434255,-400.0,0.00032699,2]
[381879419,1756385434265,-400.0,0.00032699,2]
[381879420,1756385434275,-400.0,0.00032699,2]
[381879421,1756385434285,-372.02091413,0.00032699,2]
[381879422,1756385437970,-457.71,0.00025796,2]
[381879423,1756385437980,-5.33398045,0.00027402,2]
[381879424,1756385437992,-409.91101955,0.00027402,2]
[381879425,1756385438003,-27.97908587,0.00032699,2]
[381879426,1756385438013,-400.0,0.00032699,2]
[381879427,1756385438024,-400.0,0.00032699,2]
[381879428,1756385438034,-453.78,0.00032699,2]
[381879429,1756385438044,-418.35810292,0.00032699,2]
[381879430,1756385438055,-280.41285601,0.00032699,2]
[381879431,1756385438067,-130.93714399,0.00032699,2]
[381879432,1756385438078,-400.0,0.00032699,2]
[381879433,1756385438087,-500.0,0.00032699,2]
[381879434,1756385438098,-400.0,0.00032699,2]
[381879435,1756385438108,-400.0,0.00032699,2]
[381879436,1756385438118,-1000.0,0.00032699,2]
[381879437,1756385438127,-400.0,0.00032699,2]
[381879438,1756385438137,-400.0,0.00032699,2]
[381879439,1756385438147,-402.04,0.00032699,2]
[381879456,1756385438453,-400.0,0.00032699,2]
[381879459,1756385438464,-400.0,0.00032699,2]
[381879461,1756385438473,-400.0,0.00032699,2]
[381879463,1756385438482,-500.0,0.00032876,120]
[381879465,1756385438492,-1673.625,0.00032876,22]
[381879467,1756385438501,-400.0,0.00032972,2]
[381879469,1756385438511,-400.0,0.00032972,2]
[381879471,1756385438520,-400.0,0.00032972,2]
[381879473,1756385438529,-400.0,0.00032972,2]
[381879475,1756385438538,-400.0,0.00032972,2]
[381879477,1756385438547,-485.48,0.00032972,2]
[381879478,1756385438557,-400.0,0.00032973,2]
[381879480,1756385438566,-379.83,0.00032973,2]
[381879482,1756385438575,-299.23,0.00032973,2]
[381879484,1756385438584,-142.24085973,0.00032973,2]
[381879487,1756385438596,-82.69914027,0.00032973,2]
[381879489,1756385438605,-337.99,0.00032973,2]
[381879491,1756385438614,-260.01,0.00032973,2]
[381879493,1756385438623,-79.78184884,0.00032973,2]
[381879495,1756385438635,-416.41815116,0.00032973,2]
[381879497,1756385438644,-400.0,0.00032973,2]
[381879499,1756385438654,-400.0,0.00032973,2]
[381879501,1756385438663,-421.51,0.00032973,2]
[381879503,1756385438672,-456.06,0.00032973,2]
[381879505,1756385438682,-400.0,0.00032973,2]
[381879507,1756385438692,-400.0,0.00032973,2]
[381879509,1756385438704,-400.0,0.00032973,2]
[381879511,1756385438713,-400.0,0.00032973,2]
[381879513,1756385438722,-400.0,0.00032973,2]
[381879515,1756385438732,-400.0,0.00032973,2]
[381879517,1756385438743,-160.0,0.00033,120]
[381879519,1756385438752,-376.0,0.00033,14]
[381879521,1756385438761,-274.0,0.00033,14]
[381879523,1756385438771,-484.41,0.00033013,14]
[381879525,1756385438780,-274.0,0.00033151,30]
[381879526,1756385438789,-376.0,0.00033151,30]
[381879529,1756385438801,-205.66,0.00033165,2]
[381879531,1756385438810,-150.0,0.00033187,120]
[381879533,1756385438819,-400.0,0.00033246,2]
[381879534,1756385438828,-400.0,0.00033246,2]
[381879537,1756385438838,-297.01,0.00033246,2]
[381879538,1756385438847,-400.0,0.00033246,2]
[381879540,1756385438857,-400.0,0.00033247,2]
[381879542,1756385438867,-321.57,0.00033247,2]
[381879544,1756385438877,-524.14,0.00033247,2]
[381879546,1756385438886,-382.98,0.00033247,2]
[381879548,1756385438896,-211.11,0.00033247,2]
[381879550,1756385438905,-400.0,0.00033247,2]
[381879552,1756385438915,-400.0,0.00033247,2]
[381879554,1756385438925,-400.0,0.00033247,2]
[381879555,1756385438934,-400.0,0.00033247,2]
[381879556,1756385438944,-400.0,0.00033284,2]
[381879557,1756385438953,-400.0,0.00033284,2]
[381879558,1756385438963,-400.0,0.00033284,2]
[381879559,1756385438972,-400.0,0.00033284,2]
[381879560,1756385438981,-154.47328715,0.00033285,2]
[381879561,1756385438991,-4900.46665962,0.00033285,5]
[381879562,1756385439001,-181.19173631,0.00033285,15]
[381879563,1756385439011,-774.91918363,0.00033313,2]
[381879564,1756385439021,-150.0,0.00033339,120]
[381879565,1756385439031,-153.90459648,0.00033357,2]
[381879566,1756385439040,-300.0,0.0003337,2]
[381879567,1756385439049,-531.518576,0.00033373,5]
[381879568,1756385439059,-150.89,0.00033375,2]
[381879569,1756385439068,-150.89,0.00033375,2]
[381879570,1756385439077,-150.89,0.00033375,2]
[381879571,1756385439087,-150.89,0.00033375,2]
[381879572,1756385439096,-150.89,0.00033375,2]
[381879573,1756385439106,-150.89,0.00033375,2]
[381879574,1756385439115,-400.0,0.00033383,2]
[381879575,1756385439125,-400.0,0.00033383,2]
[381879576,1756385439134,-297.353175,0.00033383,2]
[381879577,1756385439146,-193.22544666,0.00033383,2]
[381879578,1756385439157,-400.0,0.00033383,2]
[381879579,1756385439167,-400.0,0.00033383,2]
[381879580,1756385439176,-400.0,0.00033383,2]
[381879581,1756385439185,-201.69476481,0.00033383,2]
[381879582,1756385439195,-400.0,0.00033383,2]
[381879583,1756385439204,-400.0,0.00033383,2]
[381879584,1756385439216,-400.0,0.00033383,2]
[381879585,1756385439227,-400.0,0.00033383,2]
[381879586,1756385439237,-179.82973726,0.00033383,2]
[381879587,1756385439247,-400.0,0.00033383,2]
[381879588,1756385439256,-531.93,0.00033383,2]
[381879589,1756385439266,-400.0,0.00033383,2]
[381879590,1756385439275,-400.0,0.00033383,2]
[381879591,1756385439284,-400.0,0.00033383,2]
[381879592,1756385439294,-400.0,0.00033383,2]
[381879593,1756385439303,-407.43,0.00033383,2]
[381879594,1756385439313,-400.0,0.00033383,2]
[381879595,1756385439322,-400.0,0.00033383,2]
[381879596,1756385439332,-400.0,0.00033383,2]
[381879597,1756385439341,-400.0,0.00033383,2]
[381879598,1756385439350,-400.0,0.00033383,2]
[381879599,1756385439360,-400.0,0.00033383,2]
[381879600,1756385439369,-400.0,0.00033383,2]
[381879601,1756385439379,-421.97,0.00033383,2]
[381879602,1756385439388,-400.0,0.00033383,2]
[381879603,1756385439397,-400.0,0.00033383,2]
[381879604,1756385439406,-400.0,0.00033383,2]
[381879605,1756385439416,-400.0,0.00033383,2]
[381879606,1756385439425,-400.0,0.00033383,2]
[381879607,1756385439435,-400.0,0.00033383,2]
[381879608,1756385439444,-130.91634575,0.00033383,2]
[381879609,1756385439456,-269.08365425,0.00033383,2]
[381879610,1756385439465,-400.0,0.00033383,2]
[381879611,1756385439475,-400.0,0.00033383,2]
[381879612,1756385439485,-400.0,0.00033383,2]
[381879613,1756385439494,-400.0,0.00033383,2]
[381879614,1756385439504,-400.0,0.00033383,2]
[381879615,1756385439515,-400.0,0.00033383,2]
[381879616,1756385439524,-500.0,0.00033383,2]
[381879617,1756385439533,-400.0,0.00033383,2]
[381879618,1756385439542,-400.0,0.00033383,2]
[381879619,1756385439552,-400.0,0.00033383,2]
[381879620,1756385439562,-400.0,0.00033383,2]
[381879621,1756385439571,-400.0,0.00033383,2]
[381879622,1756385439580,-400.0,0.00033383,2]
[381879623,1756385439590,-2098.06,0.00033384,120]
[381879624,1756385439600,-3323.85634575,0.00033385,60]
[381879625,1756385439613,-55088.19535917,0.00033385,60]
[381879626,1756385439797,-4568.9,0.00033385,60]
[381879627,1756385440019,-640.03461249,0.00033385,60]
[381879628,1756385440130,-596.32240636,0.00033385,60]
[381879636,1756385446038,-6792.69111981,0.000249,2]
[381879637,1756385446049,-4801.00945279,0.00025859,4]
[381879642,1756386318038,-184.1155576,0.00013699,2]
[381879643,1756386363423,-7.1544424,0.00013699,2]
[381879644,1756386363447,-144.8455576,0.00015068,2]
[381879646,1756386365147,-184.255,0.00015068,2]
[381879647,1756386367422,-162.8994424,0.00015068,2]
[381879650,1756386495534,1000.0,0.00030136,120]
[381879651,1756386505322,1000.0,0.00030136,120]
[381879652,1756386520554,1000.0,0.00030136,120]
[381879653,1756386529496,-8.0,0.00015546,2]
[381879654,1756386536570,-16.0,0.00015546,2]
[381879655,1756386544535,-32.0,0.00015546,2]
[381879656,1756386552210,-436.0,0.00015546,2]
[381879657,1756386552238,-28.0,0.00016321,2]
[381879658,1756386559782,-272.0,0.00016321,2]
[381879659,1756386559811,-500.0,0.00016322,2]
[381879660,1756386559839,-500.0,0.00016322,2]
[381879671,1756386632023,-500.0,0.00016322,2]
[381879672,1756386632032,-543.79034239,0.00016322,2]
[381879673,1756386632041,-500.0,0.00016322,2]
[381879674,1756386632051,-586.52826143,0.00016322,2]
[381879675,1756386632060,-500.0,0.00016322,2]
[381879676,1756386632069,-492.0,0.00016323,2]
[381879677,1756386632079,-251.0,0.00016323,2]
[381879678,1756386632088,-492.0,0.00016935,2]
[381879679,1756386632098,-492.0,0.000171,2]
[381879680,1756386632107,-150.0,0.000171,2]
[381879681,1756386632117,-250.0,0.000171,2]
[381879682,1756386632127,-251.0,0.000171,2]
[381879683,1756386632136,-500.0,0.00017393,2]
[381879684,1756386632146,-492.0,0.00017954,2]
[381879685,1756386632155,-150.0,0.00018675,2]
[381879686,1756386632165,-232.0,0.00019249,2]
[381879687,1756386632174,-150.0,0.00020101,2]
[381879688,1756386632184,-191.27,0.00020187,2]
[381879689,1756386632193,-208.1,0.00021,2]
[381879690,1756386632203,-409.82097998,0.00021215,2]
[381879691,1756386632212,-241.0,0.00021527,2]
[381879692,1756386632221,-448.83,0.00025859,2]
[381879693,1756386632231,-451.8,0.00025859,2]
[381879694,1756386632240,-442.58,0.00025859,2]
[381879695,1756386632250,-454.03,0.00025859,2]
[381879696,1756386632259,-152.47,0.00025859,2]
[381879697,1756386632269,-150.45,0.00025859,2]
[381879698,1756386632279,-191.27,0.00026676,2]
[381879699,1756386632288,-168.0,0.00026783,2]
[381879700,1756386632297,-392.15866913,0.00027,2]
[381879701,1756386632307,-522.0,0.00027137,2]
[381879702,1756386632316,-4156.0,0.00027234,2]
[381879703,1756386632326,-584.725,0.00027376,16]
[381879704,1756386632335,-169.183,0.00027376,16]
[381879705,1756386632344,-168.0,0.00027865,2]
[381879706,1756386632354,-168.0,0.00028092,2]
[381879707,1756386632363,-168.0,0.00028687,2]
[381879708,1756386632372,-300.0,0.00028756,2]
[381879709,1756386632381,-1000.0,0.00028756,3]
[381879710,1756386632390,-1000.0,0.00028756,3]
[381879711,1756386632400,-1000.0,0.00028756,3]
[381879712,1756386632410,-1000.0,0.00028756,3]
[381879713,1756386632420,-1000.0,0.00028756,3]
[381879714,1756386632430,-1000.0,0.00028756,3]
[381879715,1756386632440,-624.31,0.000289,7]
[381879716,1756386632449,-1873.55211324,0.00029,2]
[381879717,1756386632459,-160.0,0.00029052,7]
[381879718,1756386632469,-168.0,0.00029078,2]
[381879719,1756386632478,-168.0,0.00029305,2]
[381879720,1756386632487,-5000.0,0.00029611,2]
[381879721,1756386632498,-242.12,0.00029655,80]
[381879722,1756386632507,-1000.0,0.00029748,2]
[381879723,1756386632517,-337.53,0.0003,2]
[381879724,1756386632528,-4156.0,0.00030234,2]
[381879725,1756386632538,-1000.0,0.00030302,2]
[381879726,1756386632548,-163.58,0.00030552,2]
[381879727,1756386632557,-150.0,0.00032313,2]
[381879728,1756386632567,-150.0,0.00032313,2]
[381879729,1756386632576,-150.0,0.00032313,2]
[381879730,1756386632585,-2105.0,0.00032313,2]
[381879731,1756386632594,-1000.0,0.00032313,3]
[381879732,1756386632604,-1000.0,0.00032313,3]
[381879733,1756386632613,-1000.0,0.00032313,3]
[381879734,1756386632622,-1000.0,0.00032313,3]
[381879735,1756386632632,-262.54665313,0.00032381,2]
[381879736,1756386632641,-1003.2190421,0.00032389,2]
[381879737,1756386632650,-16472.27286798,0.00032389,2]
[381879738,1756386632662,-2344.59989811,0.00032389,2]
[381879739,1756386632672,-509.57288024,0.00032389,2]
[381879740,1756386632684,-347.559,0.00032389,2]
[381879741,1756386632707,-653.68109119,0.00032389,2]
[381879742,1756386632718,-2122.72992638,0.00032389,2]
[381879743,1756386632728,-666.0000001,0.00032389,2]
[381879744,1756386632737,-150.0,0.00032587,2]
[381879745,1756386632747,-150.0,0.00032587,2]
[381879746,1756386632756,-1882.48066984,0.00032646,2]
[381879747,1756386632774,-222.51933016,0.00032646,2]
[381879748,1756386632783,-200.0,0.00032861,2]
[381879749,1756386632793,-150.0,0.00032861,2]
[381879750,1756386632802,-1000.0,0.0003287,120]
[381879751,1756386632811,-122.45092848,0.0003287,120]
[381879752,1756386632822,-542.79234401,0.0003287,120]
[381879753,1756386632926,-334.75672751,0.0003287,120]
[381879754,1756386632935,-500.23284363,0.00032876,120]
[381879755,1756386632949,-700.6999975,0.00032876,120]
[381879756,1756386632961,-299.06715887,0.00032876,120]
[381879757,1756386632970,-247.63660592,0.00032877,7]
[381879758,1756386632981,-252.36339408,0.00032877,7]
[381879759,1756386632989,-383.46796883,0.00032877,7]
[381879760,1756386633016,-116.53203117,0.00032877,7]
[381879761,1756386633025,-500.0,0.00032877,7]
[381879762,1756386633035,-496.0,0.000329,2]
[381879763,1756386633045,-612.23637637,0.00032979,2]
[381879764,1756386633060,-1070.9381862,0.00032979,2]
[381879765,1756386633072,-421.82543743,0.00032979,2]
[381879766,1756386633083,-54.53010549,0.00033,14]
[381879767,1756386637926,-281.55,0.00016321,2]
[381879768,1756386638193,-35.37961844,0.00016321,2]
[381879769,1756386638202,-915.171,0.00027234,2]
[381879770,1756386638213,-227.46989451,0.00033,14]
[381879771,1756386638222,-206.0,0.00033,14]
[381879772,1756386638232,-250.0,0.00033,14]
[381879773,1756386638241,-2299.99999706,0.00033,7]
[381879774,1756386638251,-2508.81490836,0.0003305,2]
[381879775,1756386638263,-675.26371164,0.0003305,2]
[381879776,1756386638273,-274.0,0.00033135,2]
[381879777,1756386638284,-200.0,0.00033136,10]
[381879778,1756386638293,-806.73141447,0.00033147,2]
[381879779,1756386638303,-282.0,0.00033151,30]
[381879780,1756386638311,-206.0,0.00033151,30]
[381879781,1756386638323,-191.27,0.00033165,2]
[381879782,1756386638333,-169.23744463,0.00033184,2]
[381879783,1756386638342,-476.254,0.00033234,2]
[381879784,1756386638352,-832.97019918,0.00033264,2]
[381879785,1756386638361,-695.39793187,0.00033284,15]
[381879786,1756386638370,-90.47529821,0.00033284,15]
[381879953,1756386640037,-630.65235714,0.00033284,15]
[381879955,1756386640046,-201.93286099,0.00033284,15]
[381879958,1756386640056,-669.66820839,0.00033284,15]
[381879959,1756386640066,-209.40437684,0.00033284,15]
[381879961,1756386640075,-217.15233878,0.00033284,15]
[381879963,1756386640084,-225.18697532,0.00033284,15]
[381879965,1756386640094,-92.00628482,0.00033284,15]
[381879968,1756386640105,-141.51260859,0.00033284,15]
[381879970,1756386640116,-160.69009141,0.00033284,15]
[381879972,1756386640131,-957.19388897,0.00033284,15]
[381879974,1756386640140,-242.15909246,0.00033284,15]
[381879976,1756386640149,-251.11897888,0.00033284,15]
[381879978,1756386640159,-151.0,0.00033284,15]
[381879980,1756386640168,-1000.0,0.00033284,15]
[381879982,1756386640177,-260.4103811,0.00033284,15]
[381879984,1756386640186,-270.0455652,0.00033284,15]
[381879986,1756386640195,-280.03725112,0.00033284,15]
[381879988,1756386640204,-290.39862941,0.00033284,15]
[381879990,1756386640215,-301.1433787,0.00033284,15]
[381879992,1756386640225,-1000.0,0.00033284,15]
[381879994,1756386640234,-200.0,0.00033284,15]
[381879996,1756386640244,-471.49283416,0.00033284,15]
[381880011,1756386640368,-154.47328711,0.00033255,2]
[381880013,1756386640377,-28.50716584,0.00033284,15]
[381880015,1756386640388,-344.27329257,0.00033284,15]
[381880020,1756386640425,-625.34,0.00033284,15]
[381880277,1756386643037,-842.92918201,0.00033284,15]
[381880279,1756386643050,-712.28693959,0.00033284,15]
[381880281,1756386643059,-1000.0,0.00033284,15]
[381880283,1756386643069,-151.0,0.00033284,15]
[381880285,1756386643079,-29.3196784,0.00033284,15]
[381880288,1756386643092,-270.6803216,0.00033284,15]
[381880290,1756386643102,-267.46074303,0.00033284,15]
[381880292,1756386643112,-277.35679052,0.00033284,15]
[381880294,1756386643121,-287.61899177,0.00033284,15]
[381880296,1756386643131,-298.26089446,0.00033284,15]
[381880298,1756386643140,-309.29654756,0.00033284,15]
[381880300,1756386643149,-320.74051982,0.00033284,15]
[381880302,1756386643158,-332.60791905,0.00033284,15]
[381880304,1756386643167,-344.91441206,0.00033284,15]
[381880306,1756386643176,-357.6762453,0.00033284,15]
[381880307,1756386643186,-370.91026638,0.00033284,15]
[381880310,1756386643195,-384.63394623,0.00033284,15]
[381880312,1756386643205,-398.86540225,0.00033284,15]
[381880314,1756386643215,-322.6107,0.00033284,15]
[381880316,1756386643225,-334.5472959,0.00033284,15]
[381880318,1756386643234,-346.92554585,0.00033284,15]
[381880320,1756386643244,-334.98894995,0.00033284,15]
[381880322,1756386643254,-400.5673,0.00033285,2]
[381880324,1756386643263,-153.90459648,0.00033285,2]
[381880326,1756386643272,-1461.72446395,0.00033313,2]
[381880328,1756386643284,-300.0,0.00033313,2]
[381880330,1756386643295,-343.27553605,0.00033313,2]
[381880332,1756386643304,-619.22446395,0.00033313,2]
[381880334,1756386643315,-91.79787471,0.00033313,2]
[381880336,1756386643324,-251.60212529,0.00033354,23]
[381880338,1756386643335,-13959.75470132,0.00033354,23]
[381880340,1756386643344,-17549.96452669,0.00033354,4]
[381880343,1756386643355,-302.78835849,0.00033354,4]
[381880617,1756386646015,-828.91164963,0.000249,2]
[381880624,1756386646126,-5577.32278433,0.000249,2]
[381880626,1756386646135,-6406.23443396,0.00025859,4]
[381880628,1756386646147,-1726.28485661,0.00026817,6]
[381880630,1756386646158,-4679.94957735,0.00026817,6]
[381880632,1756386646167,-987.55042265,0.00027776,8]
[381880651,1756386646342,-1018.72594151,0.00027776,8]
[381880653,1756386646354,-4399.9580698,0.00027776,8]
[381880655,1756386646363,-6406.23443396,0.00028734,10]
[381880657,1756386646372,-6406.23443396,0.00029693,12]
[381880659,1756386646381,-6281.96973617,0.00030652,14]
[381881714,1756386742881,-392.0,0.0001632,2]
[381881715,1756386754611,500.0,0.0001632,2]
[381881716,1756386754640,500.0,0.0001632,2]
[381881717,1756386754675,434.11,0.0001632,2]
[381881722,1756387052120,172.64,0.00026387,120]
[381881724,1756387198845,-646.31672752,0.00016254,2]
[381881725,1756387198871,-488.86475378,0.00016269,2]
[381881726,1756387198896,-395.13829691,0.00016269,2]
[381881727,1756387198920,-500.0,0.00016269,2]
[381881728,1756387198945,-340.0,0.00016269,2]
[381881729,1756387198971,-566.96640881,0.00016269,2]
[381881730,1756387198996,-492.0,0.0001627,2]
[381881731,1756387199021,-492.0,0.00016294,2]
[381881732,1756387199045,-1078.71381298,0.00016318,2]
[381881735,1756387278933,-153.01,0.00013699,2]
[381881738,1756387821207,-168.3455576,0.00015,2]
[381881739,1756387823581,-81.6544424,0.00015,2]
[381881747,1756387832298,-1749.38223619,0.000154,2]
[381881748,1756387832308,-492.0,0.00015639,2]
[381881749,1756387832318,-300.0,0.00015977,2]
[381881750,1756387832327,-492.0,0.00016554,2]
[381881751,1756387832336,-492.0,0.0001694,2]
[381881752,1756387832345,-250.0,0.0001694,2]
[381881753,1756387832354,-300.0,0.0001694,2]
[381881754,1756387832364,-251.0,0.0001694,2]
[381881755,1756387832373,-492.0,0.0001694,2]
[381881756,1756387832382,-492.0,0.00017379,2]
[381881757,1756387832391,-767.573887,0.00017882,2]
[381881758,1756387832401,-300.0,0.00017972,2]
[381881759,1756387832410,-300.0,0.00017972,2]
[381881760,1756387832420,-500.0,0.00017973,2]
[381881761,1756387832429,-500.0,0.00017973,2]
[381881762,1756387832438,-170.53452467,0.00017973,2]
[381881763,1756387832448,-219.16288532,0.00017973,2]
[381881764,1756387832458,-500.0,0.00017973,2]
[381881765,1756387832467,-299.869312,0.00017988,2]
[381881766,1756387832477,-11807.07999927,0.00018,2]
[381881767,1756387832489,-719.22428738,0.00018,2]
[381881768,1756387832502,-15038.16704028,0.00018,2]
[381881769,1756387832513,-1814.62763569,0.00018,2]
[381881770,1756387832522,-327831.38718138,0.00018,2]
[381881771,1756387832533,-625.22875429,0.00018,2]
[381881772,1756387832545,-41946.62403018,0.00018,2]
[381881773,1756387832559,-209913.60490948,0.00018,2]
[381881774,1756387832571,-60967.8019758,0.00018,2]
[381881775,1756387832582,-250.13802397,0.00018,2]
[381881776,1756387832594,-698.27788693,0.00018,2]
[381881777,1756387832620,-300.73503673,0.00018,2]
[381881967,1756387838147,-153.35186716,0.0001799,2]
[381881968,1756387838156,-2049.94813284,0.00018,2]
[381881969,1756387838288,-2200.25256017,0.00018,2]
[381881970,1756387838301,-42303.48675551,0.00018,2]
[381882044,1756387840210,-765.78269916,0.00018,2]
[381882045,1756387840222,-5723.06649029,0.00018,2]
[381882046,1756387840271,-8891.23974276,0.00018,2]
[381882047,1756387840283,-764.745945,0.00018,2]
[381882048,1756387840494,-587.63088643,0.00018,2]
[381882049,1756387840505,-698.47771057,0.00018,2]
[381882050,1756387840520,-1144.51295639,0.00018,2]
[381882221,1756387843406,-726.85080326,0.00018,2]
[381882222,1756387846208,-2152.14999999,0.00018,2]
[381882223,1756387846323,-458.47014067,0.00018,2]
[381882224,1756387846384,-2037.75143421,0.00018,2]
[381882225,1756387846395,-4070.64884053,0.00018,2]
[381882226,1756387846501,-626.8265502,0.00018,2]
[381882227,1756387846562,-383.5086327,0.00018,2]
[381882228,1756387846621,-2338.997544,0.00018,2]
[381882232,1756388556786,173.05,0.00013699,2]
[381882233,1756388557927,-150.0,0.00014199,3]
[381882243,1756388606832,-696.394,0.00014199,2]
[381882254,1756388846861,1024.0,0.00030137,120]
[381882261,1756389031572,-282.40988421,0.00017112,2]
[381882262,1756389031582,-492.0,0.00017147,2]
[381882263,1756389031592,-2751.0,0.00017181,2]
[381882264,1756389031601,-323.48246433,0.00017212,2]
[381882265,1756389031611,-204.99732255,0.00017212,2]
[381882266,1756389031620,-197.1142868,0.00017212,2]
[381882267,1756389031630,-492.0,0.00017213,2]
[381882268,1756389031639,-173.15,0.00017244,2]
[381882269,1756389031649,-492.0,0.0001746,2]
[381882270,1756389031659,-150.0,0.00017591,2]
[381882271,1756389031669,-300.0,0.00017693,2]
[381882272,1756389031678,-792.59113581,0.00017693,2]
[381882273,1756389031700,-407.40886419,0.00017693,2]
[381882274,1756389031710,-229.0,0.00017694,2]
[381882275,1756389031720,-4973.58770866,0.00017695,2]
[381882276,1756389031735,-5626.53068631,0.00017695,2]
[381882277,1756389031744,-2653.39885,0.0001782,2]
[381882278,1756389031754,-2768.13921064,0.00017888,2]
[381882279,1756389031767,-153.23370731,0.00017888,2]
[381882280,1756389031777,-158.07335007,0.00017888,2]
[381882281,1756389031787,-152.76927884,0.00017888,2]
[381882282,1756389031797,-250.0,0.00017907,2]
[381882283,1756389031810,-166.33401391,0.0001791,2]
[381882284,1756389031819,-432.75,0.00017933,2]
[381882285,1756389031829,-922.92046743,0.00017934,2]
[381882286,1756389031839,-550.0,0.00017972,2]
[381882287,1756389031848,-500.0,0.00017973,2]
[381882288,1756389031858,-500.0,0.00017973,2]
[381882289,1756389031868,-500.0,0.00017973,2]
[381882290,1756389031878,-500.0,0.00017973,2]
[381882291,1756389031888,-500.0,0.00017973,2]
[381882292,1756389031898,-500.0,0.00017973,2]
[381882293,1756389031907,-500.0,0.00017973,2]
[381882294,1756389031917,-500.0,0.00017973,2]
[381882295,1756389031926,-500.0,0.00017973,2]
[381882296,1756389031936,-621.67074714,0.00017973,2]
[381882297,1756389031945,-500.0,0.00017973,2]
[381882298,1756389031955,-500.0,0.00017973,2]
[381882299,1756389031964,-486.64439252,0.00017973,2]
[381882300,1756389031974,-645.79127351,0.00017973,2]
[381882302,1756389031984,-500.0,0.00017973,2]
[381882304,1756389031993,-500.0,0.00017973,2]
[381882306,1756389032003,-500.46403506,0.00017973,2]
[381882308,1756389032014,-500.0,0.00017973,2]
[381882310,1756389032023,-500.0,0.00017973,2]
[381882312,1756389032032,-400.0,0.00017987,2]
[381882314,1756389032041,-400.0,0.00017987,2]
[381882316,1756389032051,-252.64,0.00017987,2]
[381882318,1756389032061,-506.86,0.00017987,2]
[381882320,1756389032070,-400.0,0.00017987,2]
[381882322,1756389032080,-500.0,0.00017987,2]
[381882324,1756389032089,-400.0,0.00017987,2]
[381882326,1756389032099,-468.95,0.00017987,2]
[381882328,1756389032108,-500.0,0.00017987,2]
[381882330,1756389032117,-476.67,0.00017987,2]
[381882332,1756389032126,-399.88,0.00017987,2]
[381882334,1756389032135,-400.0,0.00017987,2]
[381882336,1756389032144,-285.94,0.00017987,2]
[381882338,1756389032154,-481.52,0.00017987,2]
[381882340,1756389032163,-400.0,0.00017987,2]
[381882342,1756389032172,-350.87,0.00017987,2]
[381882343,1756389032181,-429.26,0.00017987,2]
[381882345,1756389032191,-181.93,0.00017987,2]
[381882347,1756389032200,-385.15,0.00017987,2]
[381882349,1756389032209,-300.43,0.00017987,2]
[381882351,1756389032219,-301.97,0.00017987,2]
[381882353,1756389032228,-294.73,0.00017987,2]
[381882355,1756389032238,-336.25,0.00017987,2]
[381882357,1756389032247,-400.0,0.00017987,2]
[381882359,1756389032257,-270.52,0.00017987,2]
[381882361,1756389032268,-400.0,0.00017987,2]
[381882363,1756389032277,-192.56,0.00017987,2]
[381882365,1756389032286,-400.0,0.00017987,2]
[381882367,1756389032295,-151.38,0.00017987,2]
[381882369,1756389032305,-23917.24548861,0.00017988,2]
[381882371,1756389032318,-424.03203778,0.00017988,2]
[381882374,1756389032328,-6370.14725469,0.00017988,2]
[381882376,1756389032340,-400.71691331,0.00017988,2]
[381882643,1756389037698,-1208.2,0.00017988,2]